bitfinex/quotes_SOLUSD_20260202
["timestamp","ask_amount","ask_price","bid_price","bid_amount"]
[1770050107545,13.95629077,105.75,105.71,18.05505971]
[1770050107746,22.55150752,105.75,105.71,18.05505971]
[1770050107954,4.5,105.74,105.71,8.59521675]
[1770050108159,22.55082826,105.76,105.71,8.59521675]
[1770050108348,4.5,105.75,105.71,8.59521675]
[1770050108962,13.09521675,105.75,105.71,8.59521675]
[1770050109264,22.55156867,105.75,105.71,18.05504264]
[1770050110158,4.5,105.75,105.71,18.05504264]
[1770050110763,13.95637688,105.75,105.71,18.05504264]
[1770050112751,4.5,105.73,105.7,18.05555772]
[1770050112955,4.5,105.72,105.68,8.59521675]
[1770050113152,4.5,105.72,105.69,8.59521675]
[1770050114951,22.54879965,105.78,105.71,8.59521675]
[1770050115156,4.5,105.77,105.74,8.59521675]
[1770050115346,4.5,105.77,105.75,8.59521675]
[1770050115667,9.4535829,105.78,105.75,8.59521675]
[1770050116052,4.5,105.77,105.71,0.28432314]
[1770050116246,4.5,105.77,105.74,8.59521675]
[1770050117067,13.95458059,105.77,105.73,18.05305472]
[1770050117263,4.5,105.76,105.73,18.05305472]
[1770050117655,4.5,105.76,105.72,9.4585871]
[1770050117965,13.09521675,105.76,105.72,18.05380385]
[1770050118552,13.95404434,105.78,105.75,8.59521675]
[1770050118751,4.5,105.78,105.75,8.59521675]
[1770050118973,13.95360326,105.78,105.75,8.59521675]
[1770050119269,4.5,105.77,105.74,8.59521675]
[1770050119466,4.5,105.77,105.73,9.45758778]
[1770050119467,4.5,105.77,105.73,8.59521675]
[1770050119970,4.5,105.78,105.75,8.59521675]
[1770050120177,4.5,105.78,105.76,8.59521675]
[1770050120763,4.5,105.78,105.75,8.59521675]
[1770050121156,4.5,105.76,105.72,9.45833155]
[1770050121362,22.55078962,105.76,105.72,18.0535483]
[1770050121565,4.5,105.75,105.72,8.59521675]
[1770050121958,4.5,105.75,105.73,18.0531597]
[1770050122158,4.5,105.75,105.73,8.59521675]
[1770050124079,13.95640355,105.75,105.72,8.59521675]
[1770050124459,4.5,105.75,105.72,18.05347232]
[1770050124958,4.5,105.75,105.72,8.59521675]
[1770050125957,13.95633861,105.75,105.72,8.59521675]
[1770050126977,4.5,105.79,105.74,8.59521675]
[1770050127191,4.5,105.81,105.78,8.59521675]
[1770050127476,4.5,105.82,105.8,8.59521675]
[1770050128074,13.95007004,105.82,105.78,9.45287583]
[1770050128380,13.95007004,105.82,105.77,23.63579136]
[1770050128381,4.5,105.82,105.79,18.04786682]
[1770050128562,13.95006685,105.82,105.79,8.59521675]
[1770050128959,4.5,105.81,105.78,9.4531001]
[1770050129159,4.5,105.81,105.79,8.59521675]
[1770050129680,4.5,105.81,105.77,9.45411438]
[1770050129884,4.5,105.81,105.78,8.59521675]
[1770050130065,13.45143227,105.81,105.78,8.59521675]
[1770050130254,9.45143227,105.81,105.77,8.59521675]
[1770050130680,9.45143227,105.81,105.78,8.59521675]
[1770050130976,9.44822373,105.84,105.8,8.59521675]
[1770050131184,23.61135488,105.89,105.83,8.59521675]
[1770050131480,8.59521675,105.88,105.83,8.59521675]
[1770050131662,32.20657163,105.89,105.85,8.59521675]
[1770050131982,4.35806371,105.88,105.85,8.59521675]
[1770050132163,4.35806371,105.87,105.85,8.59521675]
[1770050132365,4.35806371,105.87,105.83,18.04392069]
[1770050132670,4.35806371,105.85,105.82,8.59521675]
[1770050132870,4.35806371,105.85,105.82,18.045182]
[1770050133181,34.97521675,105.91,105.79,0.5]
[1770050133182,4.35806371,105.89,105.85,9.44722564]
[1770050133383,4.35806371,105.89,105.87,8.59521675]
[1770050134064,4.35806371,105.89,105.86,8.59521675]
[1770050134268,4.35806371,105.88,105.86,8.59521675]
[1770050135478,4.35806371,105.88,105.85,8.59521675]
[1770050135782,4.35806371,105.9,105.86,8.59521675]
[1770050135966,4.35806371,105.9,105.87,8.59521675]
[1770050136166,4.35806371,105.9,105.86,8.59521675]
[1770050136167,4.35806371,105.89,105.86,8.59521675]
[1770050136373,4.35806371,105.88,105.85,18.04174544]
[1770050137071,4.35806371,105.85,105.77,9.09521675]
[1770050137285,4.35806371,105.83,105.8,8.59521675]
[1770050137581,4.35806371,105.82,105.78,18.04840506]
[1770050137765,4.35806371,105.82,105.78,8.59521675]
[1770050138161,12.95328046,105.82,105.78,18.04821923]
[1770050138380,4.35806371,105.82,105.79,8.59160399]
[1770050139170,12.9496677,105.84,105.8,8.59160399]
[1770050139390,4.35806371,105.86,105.83,8.59160399]
[1770050139559,4.35806371,105.84,105.81,8.59160399]
[1770050139885,4.35806371,105.84,105.82,8.59160399]
[1770050140062,4.35806371,105.84,105.79,0.28432314]
[1770050140063,4.35806371,105.84,105.83,8.59160399]
[1770050140758,4.35806371,105.84,105.82,8.59160399]
[1770050140963,4.35806371,105.86,105.83,8.59160399]
[1770050141185,4.35806371,105.86,105.8,33.08128544]
[1770050141186,12.9496677,105.86,105.82,8.59160399]
[1770050141378,4.35806371,105.85,105.82,8.59160399]
[1770050142592,13.80548042,105.85,105.81,18.04184359]
[1770050143094,9.44741671,105.85,105.81,18.04184359]
[1770050143298,9.44741671,105.85,105.8,18.04291827]
[1770050143299,4.35806371,105.84,105.8,18.04291827]
[1770050143592,4.35806371,105.82,105.79,8.59160399]
[1770050143884,4.35806371,105.82,105.79,18.04373262]
[1770050144087,4.35806371,105.84,105.8,8.59160399]
[1770050144277,22.39645739,105.86,105.82,18.04161344]
[1770050144479,4.35806371,105.85,105.82,8.59160399]
[1770050144784,4.35806371,105.84,105.81,18.04249824]
[1770050145291,12.9496677,105.84,105.8,18.04333975]
[1770050145489,4.35806371,105.83,105.8,18.04333975]
[1770050145793,4.35806371,105.83,105.78,24.13302627]
[1770050145794,4.35806371,105.83,105.79,18.04406215]
[1770050146676,4.35806371,105.82,105.79,18.04406215]
[1770050147268,4.35806371,105.84,105.81,8.59160399]
[1770050147467,13.80638935,105.84,105.8,8.59160399]
[1770050147694,4.35806371,105.83,105.8,8.59160399]
[1770050148607,13.69683781,105.86,105.82,18.04154487]
[1770050148891,12.84160399,105.85,105.81,18.04215477]
[1770050149090,4.25,105.85,105.82,9.449945]
[1770050149274,4.25,105.85,105.82,18.04154899]
[1770050149469,4.25,105.85,105.81,18.04228593]
[1770050149679,4.25,105.84,105.81,18.04228593]
[1770050151312,13.69841902,105.84,105.8,18.04309884]
[1770050151474,4.25,105.83,105.8,18.04309884]
[1770050151791,4.25,105.83,105.79,0.28432314]
[1770050151792,4.25,105.82,105.79,8.59160399]
[1770050151991,4.25,105.82,105.78,18.04472862]
[1770050152500,4.25,105.79,105.75,18.04750392]
[1770050152789,4.25,105.79,105.76,9.45519003]
[1770050152981,4.25,105.78,105.74,8.59160399]
[1770050153178,4.25,105.78,105.75,9.45621481]
[1770050153384,4.25,105.78,105.75,18.0478188]
[1770050154589,4.25,105.78,105.74,32.23420846]
[1770050154993,13.70421546,105.78,105.73,9.45805353]
[1770050155198,4.25,105.78,105.74,8.59160399]
[1770050156999,8.59160399,105.77,105.72,9.45848585]
[1770050157297,4.25,105.77,105.74,8.59160399]
[1770050157489,22.294313,105.79,105.75,8.59160399]
[1770050157794,4.25,105.78,105.76,8.59160399]
[1770050158299,4.25,105.78,105.74,18.0484364]
[1770050158674,4.25,105.78,105.75,8.59160399]
[1770050159076,4.25,105.77,105.74,8.59160399]
[1770050159301,4.25,105.76,105.73,8.59160399]
[1770050159678,4.25,105.76,105.73,18.04935684]
[1770050160401,4.25,105.76,105.72,18.05005667]
[1770050160698,4.25,105.76,105.73,18.04963056]
[1770050160884,4.25,105.76,105.73,8.59160399]
[1770050161088,4.25,105.76,105.73,18.04963406]
[1770050161782,4.25,105.78,105.75,8.59160399]
[1770050162100,13.70234193,105.8,105.77,8.59160399]
[1770050162279,4.25,105.79,105.77,8.59160399]
[1770050162470,4.25,105.79,105.76,8.59160399]
[1770050162671,4.25,105.81,105.77,8.59160399]
[1770050163096,4.25,105.8,105.77,8.59160399]
[1770050163400,4.25,105.8,105.77,18.04592096]
[1770050163991,12.84160399,105.79,105.75,18.44742289]
[1770050164294,4.25,105.79,105.76,8.59160399]
[1770050164474,4.25,105.78,105.75,8.99160399]
[1770050164675,4.25,105.78,105.75,0.4]
[1770050165890,4.25,105.76,105.73,8.59160399]
[1770050166794,4.25,105.76,105.73,18.04963469]
[1770050166987,4.25,105.76,105.74,8.59160399]
[1770050167193,4.25,105.76,105.73,8.59160399]
[1770050167400,4.25,105.75,105.72,8.59160399]
[1770050167779,4.25,105.74,105.71,8.59160399]
[1770050167980,4.25,105.73,105.7,18.05190241]
[1770050168397,4.25,105.76,105.72,8.59160399]
[1770050168623,4.25,105.76,105.73,8.59160399]
[1770050168903,4.25,105.76,105.72,8.59160399]
[1770050169092,4.25,105.75,105.71,8.59160399]
[1770050169494,4.25,105.74,105.7,8.59160399]
[1770050169811,4.25,105.73,105.69,18.05286263]
[1770050170104,4.25,105.72,105.68,18.05386749]
[1770050170617,4.25,105.72,105.67,0.5]
[1770050170618,4.25,105.71,105.67,18.05463803]
[1770050171195,4.25,105.7,105.66,18.05566653]
[1770050171490,4.25,105.69,105.66,8.59160399]
[1770050171807,4.25,105.69,105.65,8.59160399]
[1770050172006,8.59160399,105.7,105.65,8.59160399]
[1770050172007,4.25,105.68,105.65,8.59160399]
[1770050172299,4.25,105.68,105.64,18.25729401]
[1770050172504,4.25,105.7,105.65,9.46487064]
[1770050172686,4.25,105.7,105.67,8.59160399]
[1770050173083,4.25,105.7,105.68,8.59160399]
[1770050173278,4.25,105.7,105.67,8.59160399]
[1770050173792,4.25,105.7,105.66,8.59160399]
[1770050174202,4.25,105.7,105.67,8.59160399]
[1770050174499,4.25,105.69,105.65,18.05647463]
[1770050174698,4.25,105.68,105.65,18.05647463]
[1770050175882,4.25,105.7,105.67,8.59160399]
[1770050176097,4.25,105.7,105.68,8.59160399]
[1770050176303,4.25,105.73,105.69,8.59160399]
[1770050176488,4.25,105.73,105.71,8.59160399]
[1770050176686,13.70676554,105.75,105.71,8.59160399]
[1770050176898,4.25,105.74,105.72,8.59160399]
[1770050177710,4.25,105.74,105.73,8.59160399]
[1770050178007,4.25,105.73,105.7,8.59160399]
[1770050179188,4.25,105.73,105.69,18.05280118]
[1770050179402,4.25,105.71,105.67,8.59160399]
[1770050180010,4.25,105.67,105.64,0.2]
[1770050180382,12.84160399,105.67,105.64,0.2]
[1770050180703,12.84160399,105.69,105.65,8.59160399]
[1770050180916,4.25,105.73,105.68,9.09160399]
[1770050181096,4.25,105.73,105.7,8.59160399]
[1770050181412,13.70849656,105.73,105.69,8.59160399]
[1770050181811,12.84160399,105.71,105.67,8.59160399]
[1770050181983,4.25,105.71,105.68,8.59160399]
[1770050182185,22.30010365,105.73,105.69,8.59160399]
[1770050182510,4.25,105.73,105.7,8.59160399]
[1770050182913,4.25,105.75,105.71,8.59160399]
[1770050183093,4.25,105.75,105.72,8.59160399]
[1770050183603,45.93410599,105.77,105.72,8.59160399]
[1770050183782,4.25,105.76,105.72,8.59160399]
[1770050183987,13.70553235,105.76,105.72,18.05000974]
[1770050184307,13.70553235,105.76,105.73,8.59160399]
[1770050184903,4.25,105.76,105.74,8.59160399]
[1770050185204,9.45401208,105.78,105.75,8.59160399]
[1770050185402,9.45401208,105.78,105.74,8.59160399]
[1770050185610,9.45401208,105.78,105.75,8.59160399]
[1770050186009,22.29561607,105.78,105.74,8.59160399]
[1770050186317,4.25,105.77,105.74,8.59160399]
[1770050186510,9.45401208,105.78,105.74,8.59160399]
[1770050186713,9.45401208,105.78,105.75,8.59160399]
[1770050186899,4.25,105.77,105.73,18.04954292]
[1770050187095,12.84160399,105.77,105.73,18.04954292]
[1770050187404,4.25,105.77,105.74,8.59160399]
[1770050188696,13.7044897,105.77,105.74,8.59160399]
[1770050189017,13.7044897,105.77,105.73,9.45793893]
[1770050189018,22.29609369,105.77,105.73,8.59160399]
[1770050190521,13.7044897,105.77,105.73,18.04946246]
[1770050190695,13.7044897,105.77,105.74,8.59160399]
[1770050191420,4.13478543,105.72,105.65,4.4486992]
[1770050191626,8.59160399,105.7,105.65,4.4486992]
[1770050191921,12.72638942,105.72,105.68,8.59160399]
[1770050192124,4.13478543,105.72,105.68,8.59160399]
[1770050192414,4.13478543,105.74,105.7,8.59160399]
[1770050192589,13.59283896,105.73,105.7,8.59160399]
[1770050193018,13.59147241,105.75,105.71,8.59160399]
[1770050193519,12.72638942,105.74,105.7,8.59160399]
[1770050194401,4.13478543,105.74,105.71,8.59160399]
[1770050194718,9.45805353,105.73,105.69,8.59160399]
[1770050195013,22.18444295,105.73,105.69,8.59160399]
[1770050195217,13.59283896,105.73,105.7,8.59160399]
[1770050195423,13.59283896,105.73,105.69,13.04030319]
[1770050195920,22.18444295,105.73,105.69,13.04030319]
[1770050196310,4.13478543,105.71,105.65,4.4486992]
[1770050196631,8.59160399,105.7,105.66,8.59160399]
[1770050196920,4.13478543,105.67,105.64,0.2]
[1770050197107,12.72638942,105.67,105.64,0.2]
[1770050197295,8.59160399,105.68,105.64,0.2]
[1770050197493,8.59160399,105.68,105.64,8.79160399]
[1770050198035,33.113228,105.7,105.66,8.59160399]
[1770050198321,8.59160399,105.69,105.65,13.04030319]
[1770050198713,9.46252838,105.68,105.65,13.04030319]
[1770050199416,9.46252838,105.68,105.65,8.59160399]
[1770050200208,9.46073793,105.7,105.67,8.59160399]
[1770050200421,9.46073793,105.7,105.67,8.61105338]
[1770050200716,13.59552336,105.7,105.67,8.61105338]
[1770050201325,13.59552336,105.7,105.66,13.05975258]
[1770050201707,13.59552336,105.7,105.65,9.46488914]
[1770050201708,8.61105338,105.69,105.65,8.61105338]
[1770050202325,12.74583881,105.69,105.65,8.61105338]
[1770050202504,13.59509196,105.71,105.67,8.61105338]
[1770050202704,22.20614534,105.71,105.67,8.61105338]
[1770050203323,4.13478543,105.69,105.65,8.61105338]
[1770050203525,12.74583881,105.69,105.65,8.61105338]
[1770050203909,4.13478543,105.69,105.65,8.61105338]
[1770050204219,4.13478543,105.69,105.65,18.07625083]
[1770050204425,4.13478543,105.69,105.65,8.61105338]
[1770050204629,12.74583881,105.68,105.64,13.25975258]
[1770050205629,22.20902364,105.68,105.64,13.25975258]
[1770050206006,45.8653446,105.68,105.64,13.25975258]
[1770050206213,9.46165277,105.69,105.65,4.4486992]
[1770050206419,9.46165277,105.69,105.66,8.61105338]
[1770050207307,22.20703827,105.7,105.66,8.61105338]
[1770050208112,12.74583881,105.69,105.65,8.61105338]
[1770050208322,33.1130443,105.7,105.64,0.2]
[1770050208323,4.0701337,105.67,105.64,0.2]
[1770050208625,12.68118708,105.67,105.64,0.2]
[1770050209128,12.68118708,105.66,105.64,0.2]
[1770050209826,22.14625492,105.66,105.64,0.2]
[1770050210524,12.8145777,105.68,105.64,12.87247473]
[1770050210722,41.72756804,105.69,105.65,4.06142135]
[1770050211019,9.46163307,105.69,105.65,12.67247473]
[1770050211227,13.66515739,105.69,105.66,8.61105338]
[1770050211425,13.66515739,105.69,105.65,12.67247473]
[1770050211611,45.93029346,105.69,105.65,12.67247473]
[1770050212219,8.61105338,105.68,105.64,8.81105338]
[1770050212832,45.93029346,105.69,105.64,18.27671743]
[1770050213632,12.8145777,105.67,105.64,0.2]
[1770050213934,4.20352432,105.67,105.64,0.2]
[1770050214236,13.6670546,105.67,105.64,0.2]
[1770050214421,13.6670546,105.67,105.64,8.81105338]
[1770050214628,13.6670546,105.67,105.64,0.2]
[1770050214824,13.6670546,105.67,105.64,8.81105338]
[1770050215330,9.46263433,105.68,105.64,22.33811623]
[1770050215525,9.46263433,105.68,105.65,8.61105338]
[1770050216019,9.46139444,105.7,105.66,22.13679424]
[1770050216347,22.27597214,105.7,105.66,22.13679424]
[1770050216726,22.27597214,105.7,105.66,12.67247473]
[1770050216919,4.20352432,105.69,105.66,8.61105338]
[1770050217323,4.20352432,105.69,105.65,18.07575791]
[1770050217522,4.20352432,105.69,105.66,8.61105338]
[1770050218215,13.66543134,105.69,105.66,8.61105338]
[1770050218636,13.66543134,105.69,105.65,13.52612588]
[1770050218943,13.66543134,105.69,105.65,22.13717926]
[1770050220648,4.20352432,105.71,105.66,4.06142135]
[1770050220822,4.20352432,105.7,105.66,12.67247473]
[1770050221222,45.92296133,105.72,105.67,12.67247473]
[1770050221417,45.92296133,105.72,105.68,8.61105338]
[1770050221928,4.20352432,105.71,105.67,12.67247473]
[1770050222551,13.66372872,105.71,105.67,22.13562195]
[1770050222845,4.20352432,105.7,105.66,9.463555]
[1770050223025,4.20352432,105.7,105.66,22.13602973]
[1770050223222,4.20352432,105.69,105.65,8.61105338]
[1770050223425,12.8145777,105.69,105.65,12.67247473]
[1770050223857,4.20352432,105.71,105.67,4.06142135]
[1770050224144,12.8145777,105.75,105.7,12.67247473]
[1770050224458,12.8145777,105.75,105.67,9.46327536]
[1770050224459,12.8145777,105.72,105.68,12.67247473]
[1770050224626,22.27409023,105.72,105.68,4.06142135]
[1770050224950,22.27409023,105.72,105.68,22.13484461]
[1770050225449,13.66303685,105.72,105.68,22.13484461]
[1770050225751,4.20352432,105.74,105.7,12.67247473]
[1770050225943,12.8145777,105.74,105.7,12.67247473]
[1770050226246,12.8145777,105.73,105.69,12.67247473]
[1770050226446,12.8145777,105.73,105.69,4.06142135]
[1770050226663,9.45894816,105.72,105.69,4.06142135]
[1770050226946,9.45894816,105.72,105.68,18.07342326]
[1770050227131,9.45894816,105.72,105.69,8.61105338]
[1770050227332,9.45894816,105.72,105.7,12.67247473]
[1770050227855,9.45894816,105.72,105.69,12.67247473]
[1770050228655,9.45894816,105.72,105.69,4.06142135]
[1770050228833,22.27352586,105.72,105.68,8.61105338]
[1770050229038,13.66247248,105.72,105.68,12.67247473]
[1770050229350,22.27352586,105.72,105.68,12.67247473]
[1770050229535,4.20352432,105.68,105.64,12.87247473]
[1770050229734,8.61105338,105.69,105.65,12.67247473]
[1770050230136,4.20352432,105.7,105.66,4.06142135]
[1770050230455,37.30984289,105.72,105.68,8.61105338]
[1770050230753,13.66374834,105.71,105.68,8.61105338]
[1770050230948,13.66374834,105.71,105.68,12.67247473]
[1770050230949,9.46022402,105.71,105.68,12.67247473]
[1770050232854,33.10631857,105.72,105.69,4.06142135]
[1770050233352,8.61105338,105.71,105.67,12.67247473]
[1770050233871,45.92089627,105.72,105.67,12.67247473]
[1770050234037,4.20352432,105.71,105.67,22.13587798]
[1770050234236,4.20352432,105.71,105.66,22.13661504]
[1770050234448,12.8145777,105.71,105.66,22.13661504]
[1770050234646,12.8145777,105.71,105.67,8.61105338]
[1770050234848,9.46073793,105.7,105.67,8.61105338]
[1770050236662,9.46073793,105.7,105.66,12.67247473]
[1770050236861,9.46073793,105.7,105.67,8.61105338]
[1770050237161,9.46073793,105.7,105.67,12.67247473]
[1770050238064,39.96387194,105.71,105.67,12.67247473]
[1770050238557,13.66387194,105.71,105.68,8.61105338]
[1770050238961,13.66387194,105.71,105.67,12.67247473]
[1770050239260,45.92453273,105.71,105.67,12.67247473]
[1770050239464,13.66289248,105.72,105.68,4.06142135]
[1770050239664,13.66289248,105.72,105.68,12.67247473]
[1770050239854,13.66289248,105.72,105.69,8.61105338]
[1770050241868,12.6712219,105.71,105.66,13.11098333]
[1770050242046,12.6712219,105.69,105.64,4.69992995]
[1770050242249,8.61105338,105.68,105.64,13.31098333]
[1770050242674,12.6712219,105.68,105.64,13.31098333]
[1770050243063,22.13432975,105.68,105.64,13.31098333]
[1770050244076,13.52327637,105.68,105.65,8.61105338]
[1770050244267,22.13432975,105.68,105.64,13.31098333]
[1770050244785,4.06016852,105.67,105.64,8.81105338]
[1770050244992,4.06016852,105.67,105.64,0.2]
[1770050245454,48.43425128,105.68,105.64,13.31098333]
[1770050245658,13.5231979,105.68,105.64,13.31098333]
[1770050245868,13.5231979,105.68,105.65,8.61105338]
[1770050246475,13.5231979,105.68,105.64,13.31098333]
[1770050247974,9.46302938,105.68,105.66,4.49992995]
[1770050248164,4.06016852,105.72,105.68,4.49992995]
[1770050248476,47.28577131,105.75,105.69,13.11098333]
[1770050248477,12.6712219,105.73,105.69,13.11098333]
[1770050248649,12.6712219,105.73,105.65,4.49992995]
[1770050248650,4.06016852,105.69,105.65,4.49992995]
[1770050248869,12.6712219,105.69,105.65,4.49992995]
[1770050249370,8.61105338,105.7,105.66,13.11098333]
[1770050249667,9.46073793,105.7,105.67,8.61105338]
[1770050249899,9.46073793,105.7,105.66,13.11098333]
[1770050251978,9.46073793,105.7,105.67,8.61105338]
[1770050252571,9.46032444,105.71,105.68,13.11098333]
[1770050253168,9.46032444,105.71,105.68,4.49992995]
[1770050253366,22.13154634,105.71,105.67,8.61105338]
[1770050253687,45.78115375,105.71,105.66,13.11098333]
[1770050254085,8.61105338,105.7,105.66,4.49992995]
[1770050254484,8.61105338,105.7,105.66,13.11098333]
[1770050254859,9.4593318,105.72,105.69,4.49992995]
[1770050255057,4.06016852,105.73,105.69,4.49992995]
[1770050255273,4.06016852,105.73,105.7,8.61105338]
[1770050255580,4.06016852,105.73,105.69,13.11098333]
[1770050255581,12.6712219,105.73,105.69,13.11098333]
[1770050256163,9.45894816,105.72,105.69,13.11098333]
[1770050257491,9.45894816,105.72,105.7,4.49992995]
[1770050257790,45.77519004,105.73,105.69,13.11098333]
[1770050258686,22.12976847,105.73,105.69,13.11098333]
[1770050258871,9.45854657,105.73,105.7,13.11098333]
[1770050259381,9.45854657,105.73,105.7,4.49992995]
[1770050261685,13.51742632,105.74,105.7,13.10684209]
[1770050261871,22.12433846,105.74,105.7,13.10684209]
[1770050262076,4.06016852,105.73,105.7,13.10684209]
[1770050262390,4.06016852,105.73,105.7,8.60691214]
[1770050262568,9.45894816,105.72,105.7,8.60691214]
[1770050262995,9.45894816,105.72,105.69,13.10684209]
[1770050263675,12.66708066,105.72,105.68,13.10684209]
[1770050263877,12.66708066,105.71,105.67,4.49992995]
[1770050264190,12.66708066,105.7,105.66,4.49992995]
[1770050264694,59.38318736,105.73,105.65,18.07174821]
[1770050264695,12.66708066,105.69,105.65,13.10684209]
[1770050265186,12.66708066,105.68,105.64,18.27247394]
[1770050265391,12.66708066,105.68,105.64,22.77240389]
[1770050265795,22.13012583,105.68,105.64,22.77240389]
[1770050267591,22.12923173,105.69,105.65,13.10684209]
[1770050268884,12.74137039,105.68,105.64,8.80691214]
[1770050269198,12.74137039,105.68,105.64,22.39807624]
[1770050269695,22.20449469,105.68,105.64,22.39807624]
[1770050270694,12.68092467,105.67,105.64,0.2]
[1770050270901,4.07401253,105.65,105.64,0.2]
[1770050271100,12.68092467,105.65,105.64,0.2]
[1770050271293,12.68092467,105.65,105.62,4.47923988]
[1770050271597,22.14677317,105.65,105.62,4.47923988]
[1770050271786,13.53986103,105.65,105.62,4.47923988]
[1770050272098,22.14677317,105.65,105.62,4.47923988]
[1770050274595,18.07276064,105.65,105.62,4.47923988]
[1770050275293,9.4658485,105.65,105.62,13.08615202]
[1770050275798,22.14677317,105.65,105.62,4.47923988]
[1770050276007,13.53868516,105.66,105.63,4.27923988]
[1770050276199,13.53938921,105.65,105.62,13.08615202]
[1770050276400,22.14630135,105.65,105.62,4.47923988]
[1770050277278,9.46073793,105.7,105.65,4.27923988]
[1770050277484,9.46073793,105.7,105.66,8.60691214]
[1770050277485,41.71949491,105.7,105.66,8.60691214]
[1770050278003,41.71949491,105.7,105.66,12.88615202]
[1770050278188,33.11258277,105.7,105.67,12.88615202]
[1770050278502,9.46073793,105.7,105.67,12.88615202]
[1770050279099,33.11069873,105.71,105.68,8.60691214]
[1770050279493,9.46032777,105.71,105.68,8.60691214]
[1770050280118,9.46032777,105.71,105.69,4.27923988]
[1770050280323,55.88227759,105.77,105.71,4.27923988]
[1770050280324,9.45805353,105.73,105.71,4.27923988]
[1770050280819,9.45805353,105.73,105.7,12.88615202]
[1770050281185,27.7136348,105.76,105.72,4.27923988]
[1770050281390,27.7136348,105.76,105.71,8.60691214]
[1770050281391,14.38843414,105.79,105.76,4.27923988]
[1770050281596,9.45317271,105.79,105.77,8.60691214]
[1770050281795,9.45090256,105.81,105.78,8.60691214]
[1770050282008,0.1,105.82,105.79,12.88615202]
[1770050282287,0.1,105.82,105.8,12.88615202]
[1770050282897,4.07401253,105.81,105.77,8.60691214]
[1770050283095,12.68092467,105.8,105.76,12.88615202]
[1770050283290,12.68092467,105.8,105.76,4.27923988]
[1770050283490,12.68092467,105.8,105.74,9.45705652]
[1770050283491,4.07401253,105.78,105.74,12.88615202]
[1770050283814,4.07401253,105.77,105.73,12.88615202]
[1770050284013,12.68092467,105.77,105.73,12.88615202]
[1770050284213,8.60691214,105.76,105.72,12.88615202]
[1770050285286,18.06307616,105.76,105.72,12.88615202]
[1770050285487,9.45616402,105.76,105.73,8.60691214]
[1770050285691,12.68092467,105.77,105.72,12.88615202]
[1770050285911,8.60691214,105.76,105.72,12.88615202]
[1770050286721,18.06049504,105.78,105.74,12.88615202]
[1770050286926,9.4535829,105.78,105.74,12.88615202]
[1770050287119,22.13400632,105.79,105.75,8.60691214]
[1770050287422,22.13400632,105.79,105.73,18.06448672]
[1770050287423,9.45447669,105.77,105.73,18.06448672]
[1770050287592,9.45447669,105.77,105.73,22.3437266]
[1770050287992,9.45447669,105.77,105.74,8.60691214]
[1770050288194,9.45317024,105.79,105.75,12.88615202]
[1770050288393,9.45317024,105.79,105.77,8.60691214]
[1770050288595,12.68092467,105.78,105.72,4.27923988]
[1770050288795,12.68092467,105.78,105.74,4.27923988]
[1770050289124,8.60691214,105.79,105.75,4.27923988]
[1770050289300,18.06045939,105.79,105.75,4.27923988]
[1770050289794,22.13447192,105.79,105.75,12.88615202]
[1770050290123,13.52755978,105.79,105.75,12.88615202]
[1770050290326,9.45354725,105.79,105.76,8.60691214]
[1770050290700,13.52755978,105.79,105.75,12.88615202]
[1770050291125,22.13447192,105.79,105.75,12.88615202]
[1770050291502,22.13447192,105.79,105.75,4.27923988]
[1770050291503,45.76619514,105.79,105.75,4.27923988]
[1770050292002,45.76619514,105.79,105.74,12.88615202]
[1770050294006,45.76619514,105.79,105.75,12.88615202]
[1770050294206,9.45354725,105.79,105.76,12.88615202]
[1770050294706,9.45354725,105.79,105.75,12.88615202]
[1770050296703,9.45354725,105.79,105.76,12.88615202]
[1770050297126,18.06045939,105.79,105.76,4.27923988]
[1770050297746,37.159283,105.79,105.76,8.60691214]
[1770050298040,8.60691214,105.77,105.74,4.27923988]
[1770050298413,12.68092467,105.78,105.74,12.88615202]
[1770050298622,12.68092467,105.77,105.73,8.60691214]
[1770050298948,4.07401253,105.76,105.72,12.88615202]
[1770050299146,12.68092467,105.76,105.72,4.27923988]
[1770050299320,12.68092467,105.74,105.7,12.88615202]
[1770050299641,9.45805353,105.73,105.7,12.88615202]
[1770050300320,13.53155845,105.74,105.71,8.60691214]
[1770050300721,4.07401253,105.74,105.71,8.60691214]
[1770050301841,13.53119111,105.74,105.71,8.60691214]
[1770050302643,9.45717858,105.74,105.71,8.60691214]
[1770050303342,13.79566294,105.74,105.7,13.73960121]
[1770050303635,22.40257508,105.74,105.7,12.99018624]
[1770050305939,22.40257508,105.74,105.71,4.3832741]
[1770050306733,13.79566294,105.74,105.71,4.3832741]
[1770050307927,13.79566294,105.74,105.71,12.99018624]